bitfinex-derivatives/quotes_SOLF0:USTF0_20241021
["timestamp","ask_amount","ask_price","bid_price","bid_amount"]
[1729542190567,10.46121236,166.43,166.39,3.0056]
[1729542195778,1.3397,166.47,166.35,5.96288204]
[1729542195779,5.7997,166.47,166.35,5.96288204]
[1729542195983,5.7997,166.47,166.36,1.50288204]
[1729542196185,8.79392929,166.47,166.37,1.50288204]
[1729542196384,3.0046,166.45,166.42,3.0051]
[1729542198180,5.7997,166.47,166.37,1.50266075]
[1729542198384,7.4642,166.48,166.44,3.0047]
[1729542203395,3.0042,166.48,166.44,3.0047]
[1729542207092,3.0042,166.48,166.39,5.96258216]
[1729542207388,1.2473,166.49,166.39,5.96258216]
[1729542207587,1.2722,166.52,166.4,1.50258216]
[1729542207797,5.7732,166.53,166.49,3.0038]
[1729542208589,5.7732,166.53,166.44,4.46]
[1729542208792,3.0035,166.52,166.48,3.004]
[1729542210296,5.7732,166.53,166.5,3.0037]
[1729542210297,7.4633,166.53,166.5,3.0037]
[1729542213293,2.588,166.56,166.44,5.6789]
[1729542213490,3.0031,166.54,166.44,5.6789]
[1729542213798,3.0031,166.54,166.45,2.5924]
[1729542214013,3.0031,166.54,166.5,3.0036]
[1729542215886,3.0029,166.55,166.51,3.0034]
[1729542216086,3.0029,166.55,166.45,2.5924]
[1729542216490,3.0029,166.55,166.51,3.0034]
[1729542217093,7.4625,166.57,166.53,3.003]
[1729542217296,7.4625,166.57,166.48,4.46]
[1729542217800,7.4625,166.57,166.53,3.0031]
[1729542218101,7.4625,166.57,166.48,4.46]
[1729542218292,7.4625,166.57,166.53,3.0031]
[1729542218692,67.87390876,166.59,166.48,4.46]
[1729542218693,4.46,166.59,166.48,4.46]
[1729542219000,1.3409,166.62,166.48,4.46]
[1729542219208,4.46,166.61,166.48,4.46]
[1729542219394,3.0022,166.59,166.55,3.0027]
[1729542220605,3.0022,166.59,166.56,3.0026]
[1729542223597,3.002,166.6,166.56,3.0026]
[1729542224191,3.0021,166.59,166.52,4.46]
[1729542224600,8.82869794,166.62,166.52,4.46]
[1729542225101,3.002,166.6,166.56,3.0025]
[1729542230203,8.82869794,166.62,166.52,4.46]
[1729542230397,8.82869794,166.62,166.51,4.46]
[1729542230805,8.82869794,166.62,166.53,3.0031]
[1729542231107,8.82869794,166.62,166.45,8.6016]
[1729542231405,3.0026,166.57,166.53,3.0031]
[1729542231705,8.82869794,166.62,166.5,4.46]
[1729542232009,3.0027,166.56,166.52,3.0032]
[1729542232706,3.0027,166.56,166.53,3.0031]
[1729542240413,3.0025,166.57,166.53,3.0031]
[1729542240713,3.0025,166.57,166.54,3.003]
[1729542241514,3.0025,166.57,166.5,4.46]
[1729542241808,3.0025,166.57,166.53,3.0031]
[1729542245316,8.82869794,166.62,166.53,3.0031]
[1729542245317,3.0027,166.56,166.53,3.0031]
[1729542250315,4.36869794,166.62,166.5,4.46]
[1729542250515,4.46,166.61,166.5,4.46]
[1729542252017,3.0021,166.59,166.56,3.0026]
[1729542257839,3.0018,166.61,166.58,3.0021]
[1729542258028,7.4618,166.61,166.58,3.0021]
[1729542258829,3.0018,166.61,166.58,3.0021]
[1729542265338,8.82869794,166.62,166.54,4.46]
[1729542265543,2.95664637,166.65,166.54,4.46]
[1729542265737,94.75354716,166.67,166.54,4.46]
[1729542265937,3.0011,166.65,166.54,4.46]
[1729542266233,94.75354716,166.67,166.54,4.46]
[1729542266540,94.75354716,166.67,166.62,3.0015]
[1729542266748,97.76633619,166.67,166.62,3.0015]
[1729542267044,3.001,166.66,166.62,3.0015]
[1729542267338,90.29354716,166.67,166.59,4.46]
[1729542267734,93.29424716,166.67,166.59,4.46]
[1729542268138,90.29354716,166.67,166.59,4.46]
[1729542268338,1.2624,166.68,166.65,3.0009]
[1729542268731,3.0004,166.69,166.65,3.0009]
[1729542269339,7.0227,166.72,166.63,4.44]
[1729542269539,1.3154,166.72,166.63,4.44]
[1729542269942,4.3153,166.72,166.67,3.0005]
[1729542270846,2.9999,166.71,166.67,3.0005]
[1729542275455,1.3154,166.72,166.69,3.0002]
[1729542275643,2.9996,166.73,166.69,3.0002]
[1729542281458,5.63810095,166.77,166.67,4.44]
[1729542282063,2.9993,166.75,166.71,2.9998]
[1729542282466,2.6703,166.77,166.67,4.44]
[1729542282668,2.9991,166.76,166.67,4.44]
[1729542282970,2.6703,166.77,166.67,4.44]
[1729542283160,1.3037,166.78,166.67,4.44]
[1729542283161,2.9987,166.78,166.74,2.9993]
[1729542283358,2.9987,166.78,166.72,4.44]
[1729542283657,2.9987,166.78,166.74,2.9993]
[1729542283858,2.9986,166.79,166.72,4.44]
[1729542284561,2.9987,166.78,166.74,2.9993]
[1729542288764,2.9987,166.78,166.75,2.9991]
[1729542289666,2.9985,166.79,166.75,2.9991]
[1729542290671,2.9984,166.8,166.72,4.44]
[1729542291270,2.9984,166.8,166.77,2.9988]
[1729542291659,2.9984,166.8,166.72,4.44]
[1729542291870,2.9984,166.8,166.76,2.9989]
[1729542294364,248.02,166.97,166.78,2.9986]
[1729542294365,2.9981,166.81,166.78,2.9986]
[1729542295461,2.9982,166.81,166.78,2.9986]
[1729542311774,2.96689819,166.84,166.77,4.44]
[1729542311976,4.44,166.86,166.77,4.44]
[1729542312569,2.9981,166.82,166.78,2.9985]
[1729542312775,7.44060014,166.86,166.78,2.9985]
[1729542313170,2.9981,166.81,166.78,2.9985]
[1729542325978,2.998,166.82,166.79,2.9985]
[1729542329781,7.44060014,166.86,166.77,4.44]
[1729542330483,2.9979,166.83,166.79,2.9984]
[1729542330776,7.44060014,166.86,166.79,2.9984]
[1729542331683,2.998,166.82,166.79,2.9984]
[1729542333986,2.9987,166.78,166.75,2.9991]
[1729542334184,7.44060014,166.86,166.75,4.44]
[1729542334185,1.3301,166.81,166.75,4.44]
[1729542334972,2.9986,166.79,166.76,2.9989]
[1729542336288,1.3301,166.81,166.73,111.26578226]
[1729542336488,1.2813,166.78,166.73,111.26578226]
[1729542336681,1.2813,166.78,166.61,6.0032]
[1729542336875,2.9996,166.73,166.69,3.0002]
[1729542340386,2.9999,166.71,166.67,4.44]
[1729542340588,2.97799007,166.74,166.62,1.50008072]
[1729542340589,2.6628,166.73,166.64,4.44]
[1729542340883,2.6628,166.73,166.64,3.0011]
[1729542341085,2.6628,166.73,166.63,4.44]
[1729542341086,1.2826,166.72,166.63,4.44]
[1729542341292,2.99226069,166.71,166.63,4.44]
[1729542341886,3.0003,166.69,166.65,3.0009]
[1729542344186,2.99226069,166.71,166.61,4.2858222]
[1729542344187,3.0006,166.68,166.64,3.0012]
[1729542351087,3.0006,166.68,166.61,3.0007054]
[1729542351088,3.0007,166.67,166.63,3.0013]
[1729542352394,3.0008,166.66,166.61,3.0007085]
[1729542352594,7.3745281,166.7,166.61,1.50035425]
[1729542352796,7.3745281,166.7,166.58,4.44]
[1729542353004,4.44,166.69,166.64,3.001]
[1729542353500,3.0006,166.68,166.64,3.001]
[1729542353693,7.47054538,166.69,166.64,3.001]
[1729542354994,3.0007,166.67,166.64,3.001]
[1729542356103,3.0009,166.66,166.63,3.0012]
[1729542356490,7.47054538,166.69,166.58,4.44]
[1729542356801,3.0013,166.64,166.58,4.44]
[1729542357998,3.0013,166.64,166.56,2.6427]
[1729542358201,3.0014,166.63,166.57,5.5429235]
[1729542358403,3.0014,166.63,166.59,3.002]
[1729542358789,3.0014,166.63,166.57,4.44]
[1729542359997,3.0014,166.63,166.6,3.0019]
[1729542360999,7.47054538,166.69,166.6,3.0019]
[1729542361000,3.0013,166.64,166.6,3.0019]
[1729542363308,7.47054538,166.69,166.6,3.0019]
[1729542363527,4.44,166.68,166.52,3.00146406]
[1729542363817,4.44,166.68,166.52,4.44]
[1729542364016,2.5495,166.67,166.52,4.44]
[1729542364312,3.0023,166.58,166.52,4.44]
[1729542364605,2.5495,166.67,166.52,4.44]
[1729542364606,7.50010853,166.6,166.52,4.44]
[1729542364809,4.44,166.6,166.52,4.44]
[1729542365304,3.01687309,166.59,166.52,4.44]
[1729542365500,6.01907309,166.59,166.54,3.0028]
[1729542365908,7.28517309,166.59,166.54,3.0028]
[1729542366102,4.2683,166.59,166.54,3.0028]
[1729542366512,7.21971943,166.59,166.54,3.0028]
[1729542367008,4.21751943,166.59,166.54,3.0028]
[1729542367311,3.0023,166.58,166.54,3.0028]
[1729542370606,3.0025,166.57,166.53,3.0031]
[1729542371910,108.28241328,166.73,166.5,4.44]
[1729542372216,8.2605,166.67,166.57,3.0023]
[1729542372422,11.28674153,166.67,166.5,4.44]
[1729542372721,11.28674153,166.67,166.51,1.10344747]
[1729542373608,3.0016,166.62,166.54,3.0028]
[1729542373919,4.44,166.61,166.54,3.0028]
[1729542374619,3.0023,166.58,166.54,3.0028]
[1729542374913,5.94861525,166.58,166.54,3.0028]
[1729542375414,5.94861525,166.58,166.5,4.44]
[1729542375618,4.44,166.57,166.5,3.0036]
[1729542375823,4.44,166.57,166.47,5.7756]
[1729542375824,4.44,166.57,166.47,1.3356]
[1729542376119,3.0033,166.53,166.48,4.10766998]
[1729542376312,5.99525266,166.53,166.46,4.44]
[1729542376509,5.99525266,166.53,166.47,1.10365922]
[1729542377112,2.99195266,166.53,166.47,1.10365922]
[1729542377316,3.003,166.54,166.49,3.0039]
[1729542377518,3.02606749,166.53,166.49,3.0039]
[1729542377827,6.02926749,166.53,166.49,3.0039]
[1729542378120,3.0032,166.53,166.46,4.44]
[1729542378309,3.0032,166.53,166.48,3.0041]
[1729542378717,6.07311484,166.53,166.48,3.0041]
[1729542379020,3.0032,166.53,166.48,3.0041]
[1729542379619,6.04458403,166.53,166.48,3.0041]
[1729542379821,3.0032,166.53,166.48,3.0041]
[1729542380319,6.05299768,166.53,166.48,3.0041]
[1729542380517,3.0032,166.53,166.48,3.0041]
[1729542381119,6.0581037,166.53,166.48,3.0041]
[1729542381321,3.0032,166.53,166.48,3.0041]
[1729542381722,2.94331984,166.53,166.48,3.0041]
[1729542382022,5.8906967,166.53,166.48,3.0041]
[1729542382232,2.94331984,166.53,166.48,3.0041]
[1729542382712,5.95337969,166.53,166.47,3.0044]
[1729542382912,3.0036,166.53,166.46,4.44]
[1729542383422,6.03807961,166.53,166.46,4.44]
[1729542383717,4.44,166.53,166.43,1.2995]
[1729542383919,7.40316905,166.53,166.44,1.10389082]
[1729542384126,1.3524,166.52,166.44,3.005]
[1729542384420,3.0043,166.49,166.44,3.005]
[1729542385620,1.3524,166.52,166.42,5.6818]
[1729542385920,1.3524,166.52,166.4,4.44]
[1729542386110,2.697,166.51,166.41,1.10419168]
[1729542386310,3.0049,166.45,166.4,3.0057]
[1729542387116,2.97926272,166.44,166.4,3.0057]
[1729542387316,2.97926272,166.44,166.39,1.3446]
[1729542387623,4.44,166.47,166.39,1.3446]
[1729542388621,7.4446,166.47,166.39,1.3446]
[1729542389522,7.4446,166.47,166.42,3.0053]
[1729542391416,7.4446,166.47,166.43,3.0053]
[1729542391730,7.4443,166.49,166.39,1.3446]
[1729542391926,7.4443,166.49,166.45,3.0048]
[1729542392228,3.004,166.5,166.39,1.3446]
[1729542392424,4.44,166.5,166.4,1.10424981]
[1729542392619,4.44,166.5,166.45,3.0048]
[1729542393326,3.0042,166.49,166.45,3.0048]
[1729542393528,4.44,166.5,166.4,1.2886]
[1729542393727,4.44,166.5,166.41,1.10423142]
[1729542393920,4.44,166.5,166.4,2.5374]
[1729542394626,4.44,166.5,166.46,3.0046]
[1729542394830,7.444,166.5,166.46,3.0046]
[1729542396721,1.3524,166.52,166.42,4.44]
[1729542396924,5.7924,166.52,166.43,1.10407576]
[1729542398835,5.7924,166.52,166.44,1.10405955]
[1729542399130,8.7961,166.52,166.48,3.0042]
[1729542399932,3.0032,166.55,166.51,3.0038]
[1729542400138,3.0032,166.55,166.46,4.44]
[1729542400139,4.44,166.55,166.46,4.44]
[1729542400336,4.44,166.55,166.47,4.44]
[1729542400637,3.0036,166.53,166.49,3.0041]
[1729542402139,3.0033,166.54,166.5,3.0039]
[1729542402345,7.48235387,166.55,166.47,4.44]
[1729542402729,3.0033,166.54,166.5,3.0039]
[1729542404330,7.48235387,166.55,166.4,5.58030586]
[1729542404537,7.48235387,166.55,166.41,5.54395872]
[1729542404744,7.48235387,166.55,166.42,1.10395872]
[1729542405040,3.0035,166.53,166.49,3.0041]
[1729542407061,3.0035,166.53,166.45,4.44]
[1729542408847,3.0035,166.53,166.49,3.0041]
[1729542412541,3.0038,166.52,166.48,3.0042]
[1729542414243,3.004,166.5,166.46,3.0047]
[1729542414446,4.44,166.54,166.45,4.44]
[1729542414641,4.44,166.54,166.42,4.44]
[1729542414856,3.0041,166.5,166.46,3.0047]
[1729542416541,3.0041,166.5,166.47,3.0045]
[1729542423454,4.44,166.54,166.43,4.44]
[1729542423647,3.004,166.51,166.48,3.0042]
[1729542425454,4.44,166.54,166.48,3.0042]
[1729542425647,3.004,166.5,166.48,3.0042]
[1729542426754,3.0038,166.51,166.43,4.44]
[1729542427555,3.0038,166.51,166.48,3.0043]
[1729542428054,3.004,166.5,166.48,3.0043]
[1729542430859,3.004,166.5,166.47,3.0045]
[1729542435952,3.0042,166.49,166.47,3.0045]
[1729542436659,3.0042,166.5,166.47,3.0045]
[1729542437265,4.44,166.51,166.43,4.44]
[1729542437483,7.4439,166.51,166.49,3.0042]
[1729542444364,7.4439,166.51,166.48,3.0043]
[1729542446379,3.04235387,166.55,166.44,1.50244138]
[1729542446583,4.44,166.55,166.45,2.84834138]
[1729542446880,4.44,166.55,166.46,4.13294138]
[1729542447181,4.44,166.55,166.53,3.0034]
[1729542447865,4.44,166.55,166.52,3.0036]
[1729542448066,3.0037,166.52,166.49,1.5020737]
[1729542448275,4.44,166.55,166.48,1.5020737]
[1729542448476,4.44,166.55,166.48,3.0043]
[1729542448679,7.0031,166.55,166.48,3.0043]
[1729542449282,3.0039,166.51,166.49,3.0042]
[1729542449981,7.0031,166.55,166.46,1.50230962]
[1729542450573,3.0039,166.51,166.48,3.0042]
[1729542451377,4.44,166.51,166.43,1.50230962]
[1729542451584,3.0051,166.44,166.41,1.50243986]
[1729542451779,7.4573035,166.46,166.41,1.50243986]
[1729542451972,7.4573035,166.46,166.39,4.50814954]
[1729542452281,7.4573035,166.46,166.4,1.50272789]
[1729542452574,7.4573035,166.46,166.39,4.50873752]
[1729542452780,3.0051,166.44,166.39,1.50283752]
[1729542452982,3.0051,166.44,166.4,3.0057]
[1729542460280,7.4573035,166.46,166.33,3.9002]
[1729542460682,7.4573035,166.46,166.34,4.44]
[1729542461283,3.0061,166.39,166.35,3.0067]
[1729542461582,4.44,166.42,166.34,4.44]
[1729542461786,4.44,166.42,166.36,3.0065]
[1729542461787,3.0059,166.4,166.36,3.0065]
[1729542463979,7.39671607,166.42,166.34,4.44]
[1729542464685,3.0057,166.41,166.37,3.0062]
[1729542467896,7.39671607,166.42,166.37,3.0062]
[1729542468090,3.0058,166.4,166.37,3.0062]
[1729542468291,7.39671607,166.42,166.35,3.0067]
[1729542468694,1.2987,166.41,166.35,3.0067]
[1729542469389,3.006,166.4,166.35,3.0067]
[1729542469698,1.2987,166.41,166.35,3.0067]
[1729542470090,3.0061,166.39,166.35,3.0067]
[1729542475594,3.0061,166.39,166.35,3.0067]
[1729542478201,3.9002,166.41,166.35,3.0067]
[1729542478394,3.0062,166.38,166.35,3.0067]
[1729542478900,3.0067,166.36,166.32,3.0072]
[1729542479100,4.44,166.38,166.29,1.3385]
[1729542479397,4.44,166.38,166.24,1.50343723]
[1729542479398,4.44,166.38,166.26,4.44]
[1729542480199,3.9002,166.41,166.24,2.84193723]
[1729542480409,4.44,166.4,166.27,4.44]
[1729542481298,3.0066,166.36,166.32,3.0071]
[1729542482004,4.44,166.4,166.27,4.44]
[1729542482206,3.0067,166.36,166.32,3.0072]
[1729542482599,3.0067,166.36,166.27,4.44]
[1729542482904,3.0067,166.36,166.33,3.0071]
[1729542490297,3.0067,166.36,166.34,3.0069]
[1729542493210,129.54429006,166.42,166.32,4.44]
[1729542493412,3.9122,166.51,166.33,4.21416195]
[1729542493706,4.44,166.5,166.33,1.263]
[1729542493904,3.0047,166.47,166.43,3.0052]
[1729542494112,2.94274209,166.46,166.43,3.0052]
[1729542495003,5.94754209,166.46,166.42,3.0054]
[1729542497595,4.44,166.5,166.39,4.44]
[1729542497803,3.0047,166.46,166.43,3.0052]
[1729542497997,5.94615779,166.46,166.43,3.0052]
[1729542500214,3.0047,166.46,166.43,3.0052]
[1729542500712,5.98834912,166.46,166.43,3.0052]
[1729542501915,3.0047,166.46,166.43,3.0052]
[1729542502118,3.9122,166.51,166.39,4.44]
[1729542502307,4.44,166.5,166.39,4.44]
[1729542502509,4.44,166.5,166.34,0.9587]
[1729542502819,4.44,166.5,166.35,4.44]
[1729542503717,3.0055,166.42,166.39,3.0059]
[1729542513215,2.97216369,166.44,166.38,3.006]
[1729542513216,3.0057,166.41,166.38,3.006]
[1729542513515,2.97216369,166.44,166.35,4.44]
[1729542513823,3.0053,166.43,166.4,3.0057]
[1729542517121,3.0045,166.48,166.44,3.0049]
[1729542517316,4.44,166.49,166.44,3.0049]
[1729542518129,4.44,166.49,166.42,3.0053]
[1729542518623,4.44,166.49,166.39,4.44]
[1729542518824,3.0048,166.46,166.43,3.0052]
[1729542519014,5.97084025,166.46,166.43,3.0052]
[1729542520729,3.0048,166.46,166.43,3.0052]
[1729542528028,3.0044,166.48,166.45,3.0048]
[1729542528336,3.0044,166.48,166.4,1.3034]
[1729542528734,3.0044,166.48,166.46,3.0047]
[1729542529138,7.4444,166.49,166.46,3.0047]
[1729542529436,4.44,166.49,166.46,3.0047]
[1729542529837,7.4442,166.49,166.46,3.0047]
[1729542530033,4.44,166.49,166.46,3.0047]
[1729542530434,2.5957,166.51,166.46,3.0047]
[1729542530637,7.0357,166.51,166.47,3.0044]
[1729542531432,3.0042,166.5,166.47,3.0044]
[1729542531639,7.0357,166.51,166.43,4.44]
[1729542531843,5.7033,166.51,166.43,4.44]
[1729542532043,8.7073,166.51,166.43,4.44]
[1729542532946,8.7073,166.51,166.48,3.0043]
[1729542533929,4.2673,166.51,166.48,3.0043]
[1729542534846,4.2673,166.51,166.43,4.44]
[1729542535346,4.2673,166.51,166.48,3.0042]
[1729542537641,3.004,166.51,166.43,4.44]
[1729542537840,3.004,166.51,166.49,3.0042]
[1729542538542,3.0037,166.52,166.49,3.0042]
[1729542539034,3.0037,166.52,166.43,4.44]
[1729542539035,1.3523,166.55,166.43,4.44]
[1729542539235,3.0036,166.53,166.43,4.44]
[1729542540650,3.0036,166.53,166.49,3.004]
[1729542547036,3.0036,166.53,166.5,3.0039]
[1729542547242,5.7923,166.55,166.5,3.0039]
[1729542547442,3.0034,166.54,166.47,4.44]
[1729542548648,3.0034,166.54,166.5,3.0039]
[1729542548843,3.0034,166.54,166.47,4.44]
[1729542548844,3.0032,166.55,166.47,4.44]
[1729542549849,3.0032,166.55,166.51,3.0037]
[1729542551549,3.0032,166.55,166.47,4.44]
[1729542552550,3.0032,166.55,166.49,3.0041]
[1729542552750,3.0032,166.55,166.47,4.44]
[1729542553651,3.0032,166.55,166.51,3.0037]
[1729542559662,3.0032,166.55,166.47,4.44]
[1729542559857,3.0032,166.55,166.52,3.0036]
[1729542563562,1.2615,166.56,166.47,4.44]
[1729542563757,4.2645,166.56,166.53,3.0033]
[1729542563959,2.5817,166.61,166.51,4.42]
[1729542564150,4.42,166.6,166.51,4.42]
[1729542564655,4.42,166.6,166.55,3.003]
[1729542565047,2.5817,166.61,166.55,3.003]
[1729542565048,7.0017,166.61,166.55,3.003]
[1729542565262,3.0027,166.58,166.55,3.003]
[1729542568558,3.0027,166.58,166.41,9.07456519]
[1729542568559,4.42,166.57,166.41,9.07456519]
[1729542568764,4.42,166.57,166.45,4.42]
[1729542569068,3.0037,166.52,166.48,3.0043]
[1729542569363,6.00784285,166.52,166.48,3.0043]
[1729542571665,3.0037,166.52,166.47,3.0044]
[1729542571863,6.04185171,166.52,166.46,4.42]
[1729542572057,3.0037,166.52,166.46,4.42]
[1729542572765,3.0037,166.52,166.48,3.0042]
[1729542582575,3.0039,166.51,166.48,3.0042]
[1729542584972,4.42,166.5,166.42,1.50222236]
[1729542585169,4.42,166.5,166.36,4.42]
[1729542585667,2.95343315,166.53,166.37,1.50272277]
[1729542585873,4.42,166.52,166.36,4.42]
[1729542586172,3.0046,166.47,166.43,3.0051]
[1729542586673,3.005,166.45,166.41,7.4255]
[1729542586883,4.42,166.48,166.41,3.0055]
[1729542587181,2.52,166.47,166.41,3.0055]
[1729542587975,3.0051,166.45,166.41,3.0055]
[1729542590475,3.0051,166.44,166.41,3.0055]
[1729542593183,3.7897,166.47,166.38,4.42]
[1729542593378,3.0054,166.43,166.4,3.0057]
[1729542595891,3.7897,166.47,166.38,4.42]
[1729542596187,8.2097,166.47,166.38,4.42]
[1729542597091,3.005,166.45,166.4,3.0057]
[1729542597296,3.005,166.45,166.38,4.42]
[1729542598899,3.005,166.45,166.42,3.0054]
[1729542600302,3.00360351,166.53,166.46,3.0047]
[1729542600303,3.0042,166.49,166.46,3.0047]
[1729542600499,4.42,166.5,166.42,81.86489195]
[1729542600693,4.42,166.5,166.41,4.42]
[1729542601004,3.0053,166.43,166.38,4.42]
[1729542601199,3.0053,166.43,166.37,4.42]
[1729542601402,4.42,166.46,166.34,1.50270039]
[1729542601605,3.0057,166.41,166.35,4.42]
[1729542601902,4.42,166.46,166.35,4.42]
[1729542602113,3.0053,166.43,166.38,3.0061]
[1729542602317,4.42,166.46,166.35,4.42]
[1729542602713,2.6755,166.48,166.35,4.42]
[1729542602913,4.42,166.45,166.35,4.42]
[1729542603918,3.0051,166.44,166.4,3.0057]
[1729542606818,3.0055,166.42,166.39,3.006]
[1729542607511,4.42,166.45,166.32,2.95822697]
[1729542607712,4.42,166.45,166.36,3.0064]
[1729542607713,3.006,166.39,166.36,3.0064]
[1729542608028,4.42,166.45,166.33,4.42]
[1729542608221,3.0055,166.42,166.38,3.006]
[1729542608718,3.0055,166.42,166.34,1.3041]
[1729542609316,3.0055,166.42,166.38,3.0061]
[1729542611620,3.0055,166.42,166.36,3.0065]
[1729542611921,3.0055,166.42,166.34,1.3041]
[1729542612619,3.0055,166.42,166.38,3.006]
[1729542614614,3.0055,166.42,166.34,1.3041]
[1729542615917,3.0055,166.42,166.38,3.006]
[1729542616920,3.0055,166.42,166.34,1.3041]
[1729542617127,3.0055,166.42,166.39,3.006]
[1729542618928,2.6755,166.48,166.37,4.42]
[1729542619123,4.42,166.47,166.37,4.42]
[1729542619527,3.0051,166.44,166.4,3.0057]
[1729542621327,3.0051,166.44,166.39,3.006]
[1729542621534,3.0051,166.44,166.37,4.42]
[1729542622834,4.42,166.46,166.37,4.42]
[1729542623030,2.6755,166.48,166.37,4.42]
[1729542623332,1.3533,166.48,166.37,4.42]
[1729542623532,1.3533,166.48,166.38,0.9575]
[1729542624124,1.3533,166.48,166.45,3.0048]
[1729542624928,1.3533,166.48,166.41,4.42]
[1729542624929,3.0041,166.5,166.41,4.42]
[1729542625623,3.0041,166.5,166.46,3.0046]
[1729542625832,4.42,166.51,166.41,4.42]
[1729542626034,7.424,166.51,166.41,7.39181871]
[1729542626235,7.424,166.51,166.47,3.0044]
[1729542626534,3.004,166.51,166.41,7.39181871]
[1729542627124,1.2778,166.53,166.41,7.39181871]
[1729542627329,1.2778,166.53,166.5,3.0039]
[1729542627536,7.44168951,166.56,166.47,4.42]
[1729542627725,4.42,166.56,166.47,4.42]
[1729542628338,1.2712,166.57,166.47,4.42]
[1729542628532,5.6912,166.57,166.48,1.2343]
[1729542628837,1.2712,166.57,166.48,1.2343]
[1729542629022,1.2712,166.57,166.48,2.4806]
[1729542629225,1.2712,166.57,166.54,3.0033]
[1729542631027,1.2712,166.57,166.51,4.42]
[1729542631227,3.003,166.56,166.52,3.0035]
[1729542632326,3.003,166.56,166.51,4.42]
[1729542632327,4.274,166.57,166.53,3.0033]
[1729542640845,1.2712,166.57,166.51,4.42]
[1729542641442,1.2712,166.57,166.54,3.0032]
[1729542642636,1.2712,166.57,166.51,4.42]
[1729542642947,1.2712,166.57,166.49,4.42]
[1729542644255,3.0032,166.55,166.51,3.0038]
[1729542644450,5.96367766,166.55,166.51,3.0038]
[1729542644650,3.0032,166.55,166.51,3.0038]
[1729542653661,3.0032,166.55,166.49,4.42]
[1729542655357,3.0032,166.55,166.51,3.0037]
[1729542659562,1.2712,166.57,166.55,3.003]
[1729542659761,2.5536,166.61,166.49,4.42]
[1729542660067,2.5536,166.61,166.5,1.3046]
[1729542660068,6.9736,166.61,166.5,1.3046]
[1729542660268,5.6572,166.61,166.5,4.36424224]
[1729542661160,5.6572,166.61,166.5,1.3046]
[1729542661659,3.0029,166.56,166.52,3.0035]
[1729542664666,3.0031,166.55,166.51,3.0037]
[1729542666668,1.2632,166.56,166.51,3.0037]
[1729542666669,3.0033,166.54,166.51,3.0037]
[1729542667064,3.01333168,166.55,166.49,4.42]
[1729542667264,3.0038,166.52,166.49,4.42]
[1729542667573,3.0038,166.52,166.47,4.42]
[1729542667768,3.0038,166.52,166.48,3.0043]
[1729542667970,4.28113168,166.55,166.45,4.42]
[1729542668574,4.28113168,166.55,166.46,3.0046]
[1729542668873,4.28113168,166.55,166.45,4.42]
[1729542669066,3.0036,166.52,166.49,3.0042]
[1729542670364,4.28113168,166.55,166.49,3.0042]
[1729542670567,1.2678,166.55,166.45,4.42]
[1729542671077,3.0033,166.54,166.5,3.0038]
[1729542672671,3.0033,166.54,166.51,3.0038]
[1729542674973,1.2678,166.55,166.48,4.42]
[1729542674974,1.2678,166.55,166.5,3.004]